[Event "January 9 Late 2024"]
[Site "https://www.chess.com"]
[Date "2024.01.10"]
[Round "7"]
[White "Floresvillar Gonzalez, Luis Migu"]
[Black "Goncalves, Samuel Jesus P"]
[Result "0-1"]
[Board "170"]
[TimeControl "180+1"]
[WhiteFideId "5100542"]
[BlackFideId "1945130"]
[WhiteElo "2134"]
[BlackElo "2391"]
[WhiteTeam "MEX"]
[BlackTeam "POR"]
[WhiteClock "0:00:00"]
[BlackClock "0:00:07"]

1. d4 {[%clk 0:03:00]}  Nf6 {[%clk 0:02:59]} 2. Bf4 {[%clk 0:02:59]}  e6 {[%clk 0:02:54]} 3. Nd2 {[%clk 0:02:58]}  d5 {[%clk 0:02:53]} 4. e3 {[%clk 0:02:56]}  Bd6 {[%clk 0:02:52]} 5. Bxd6 {[%clk 0:02:54]}  Qxd6 {[%clk 0:02:53]} 6. c3 {[%clk 0:02:54]}  O-O {[%clk 0:02:53]} 7. f4 {[%clk 0:02:52]}  b6 {[%clk 0:02:51]} 8. Ngf3 {[%clk 0:02:49]}  c5 {[%clk 0:02:50]} 9. h3 {[%clk 0:02:44]}  a5 {[%clk 0:02:38]} 10. Ne5 {[%clk 0:02:43]}  Nfd7 {[%clk 0:02:30]} 11. Ndf3 {[%clk 0:02:37]}  f6 {[%clk 0:02:28]} 12. Nxd7 {[%clk 0:02:36]}  Nxd7 {[%clk 0:02:28]} 13. Bd3 {[%clk 0:02:35]}  e5 {[%clk 0:02:24]} 14. fxe5 {[%clk 0:02:28]}  fxe5 {[%clk 0:02:25]} 15. dxe5 {[%clk 0:02:09]}  Nxe5 {[%clk 0:02:25]} 16. Be2 {[%clk 0:01:34]}  Nxf3+ {[%clk 0:02:20]} 17. Bxf3 {[%clk 0:01:34]}  Qg3+ {[%clk 0:02:20]} 18. Kd2 {[%clk 0:01:30]}  Kh8 {[%clk 0:02:07]} 19. Qe1 {[%clk 0:01:30]}  Qe5 {[%clk 0:02:04]} 20. Rd1 {[%clk 0:01:29]}  Bf5 {[%clk 0:02:02]} 21. Kc1 {[%clk 0:01:28]}  Rad8 {[%clk 0:01:57]} 22. Qd2 {[%clk 0:01:26]}  b5 {[%clk 0:01:44]} 23. Rhe1 {[%clk 0:01:25]}  b4 {[%clk 0:01:34]} 24. Re2 {[%clk 0:01:01]}  bxc3 {[%clk 0:01:08]} 25. Qxc3 {[%clk 0:01:00]}  Qe6 {[%clk 0:00:47]} 26. Bg4 {[%clk 0:00:44]}  Bxg4 {[%clk 0:00:42]} 27. hxg4 {[%clk 0:00:44]}  Qxg4 {[%clk 0:00:39]} 28. Red2 {[%clk 0:00:44]}  d4 {[%clk 0:00:32]} 29. exd4 {[%clk 0:00:42]}  cxd4 {[%clk 0:00:33]} 30. Rxd4 {[%clk 0:00:42]}  Rxd4 {[%clk 0:00:19]} 31. Qxd4 {[%clk 0:00:40]}  Qxg2 {[%clk 0:00:19]} 32. a3 {[%clk 0:00:37]}  Qg6 {[%clk 0:00:18]} 33. Rd3 {[%clk 0:00:33]}  h6 {[%clk 0:00:16]} 34. Qd6 {[%clk 0:00:22]}  Qg1+ {[%clk 0:00:14]} 35. Rd1 {[%clk 0:00:17]}  Qg5+ {[%clk 0:00:14]} 36. Kb1 {[%clk 0:00:16]}  Rf2 {[%clk 0:00:13]} 37. Qd8+ {[%clk 0:00:11]}  Qxd8 {[%clk 0:00:13]} 38. Rxd8+ {[%clk 0:00:11]}  Kh7 {[%clk 0:00:14]} 39. Rd5 {[%clk 0:00:10]}  g5 {[%clk 0:00:12]} 40. Rxa5 {[%clk 0:00:10]}  g4 {[%clk 0:00:13]} 41. Ra7+ {[%clk 0:00:06]}  Kg6 {[%clk 0:00:13]} 42. Ra8 {[%clk 0:00:06]}  Kh5 {[%clk 0:00:12]} 43. Rg8 {[%clk 0:00:05]}  Kh4 {[%clk 0:00:12]} 44. b4 {[%clk 0:00:05]}  g3 {[%clk 0:00:12]} 45. b5 {[%clk 0:00:05]}  g2 {[%clk 0:00:09]} 46. b6 {[%clk 0:00:04]}  Rf1+ {[%clk 0:00:07]} 47. Kb2 {[%clk 0:00:04]}  g1=Q {[%clk 0:00:08]} 48. Rxg1 {[%clk 0:00:03]}  Rxg1 {[%clk 0:00:09]} 49. a4 {[%clk 0:00:03]}  Rg8 {[%clk 0:00:07]} 50. a5 {[%clk 0:00:00]}  Rg5 {[%clk 0:00:07]} 0-1

[Event "January 9 Late 2024"]
[Site "https://www.chess.com"]
[Date "2024.01.09"]
[Round "7"]
[White "Bregu, Riza"]
[Black "Dahlgren, James Allen"]
[Result "0-1"]
[Board "171"]
[TimeControl "180+1"]
[WhiteFideId "4701739"]
[BlackFideId "22256873"]
[WhiteElo "2382"]
[BlackElo "2111"]
[WhiteTeam "ALB"]
[BlackTeam "ESP"]
[WhiteClock "0:00:19"]
[BlackClock "0:00:05"]

1. e4 {[%clk 0:03:00]}  e6 {[%clk 0:03:00]} 2. d4 {[%clk 0:03:00]}  c5 {[%clk 0:03:01]} 3. d5 {[%clk 0:02:58]}  d6 {[%clk 0:03:01]} 4. c4 {[%clk 0:02:57]}  Nf6 {[%clk 0:02:59]} 5. Nc3 {[%clk 0:02:54]}  Be7 {[%clk 0:02:55]} 6. Nf3 {[%clk 0:02:51]}  O-O {[%clk 0:02:52]} 7. Bd3 {[%clk 0:02:49]}  e5 {[%clk 0:02:51]} 8. O-O {[%clk 0:02:48]}  Ne8 {[%clk 0:02:48]} 9. Ne1 {[%clk 0:02:45]}  f6 {[%clk 0:02:48]} 10. f4 {[%clk 0:02:45]}  Nd7 {[%clk 0:02:47]} 11. f5 {[%clk 0:02:44]}  g5 {[%clk 0:02:46]} 12. fxg6 {[%clk 0:02:40]}  hxg6 {[%clk 0:02:45]} 13. Ne2 {[%clk 0:02:31]}  Ng7 {[%clk 0:02:42]} 14. Ng3 {[%clk 0:02:31]}  a6 {[%clk 0:02:37]} 15. Qg4 {[%clk 0:02:27]}  Qe8 {[%clk 0:02:34]} 16. Bh6 {[%clk 0:02:20]}  b5 {[%clk 0:02:08]} 17. Nf5 {[%clk 0:02:12]}  Nxf5 {[%clk 0:01:23]} 18. exf5 {[%clk 0:02:04]}  Qf7 {[%clk 0:01:02]} 19. Bxf8 {[%clk 0:02:01]}  Nxf8 {[%clk 0:01:02]} 20. Nf3 {[%clk 0:01:54]}  g5 {[%clk 0:00:58]} 21. Nd2 {[%clk 0:01:51]}  Nh7 {[%clk 0:00:53]} 22. h4 {[%clk 0:01:50]}  Bd7 {[%clk 0:00:52]} 23. Ne4 {[%clk 0:01:50]}  Kg7 {[%clk 0:00:52]} 24. hxg5 {[%clk 0:01:42]}  Nxg5 {[%clk 0:00:48]} 25. Nxg5 {[%clk 0:01:38]}  fxg5 {[%clk 0:00:49]} 26. f6+ {[%clk 0:01:35]}  Bxf6 {[%clk 0:00:49]} 27. Bf5 {[%clk 0:01:34]}  Bxf5 {[%clk 0:00:34]} 28. Rxf5 {[%clk 0:01:35]}  Rf8 {[%clk 0:00:25]} 29. Raf1 {[%clk 0:01:26]}  Qg6 {[%clk 0:00:24]} 30. Qe2 {[%clk 0:01:07]}  b4 {[%clk 0:00:23]} 31. Qe4 {[%clk 0:00:58]}  Be7 {[%clk 0:00:19]} 32. Qf3 {[%clk 0:00:49]}  Rxf5 {[%clk 0:00:18]} 33. Qxf5 {[%clk 0:00:50]}  Qxf5 {[%clk 0:00:18]} 34. Rxf5 {[%clk 0:00:51]}  Bf6 {[%clk 0:00:18]} 35. b3 {[%clk 0:00:47]}  g4 {[%clk 0:00:15]} 36. Kh2 {[%clk 0:00:43]}  Kg6 {[%clk 0:00:15]} 37. Rf1 {[%clk 0:00:42]}  Be7 {[%clk 0:00:07]} 38. Kg3 {[%clk 0:00:39]}  Kg5 {[%clk 0:00:07]} 39. Rf7 {[%clk 0:00:39]}  Bf6 {[%clk 0:00:07]} 40. Rd7 {[%clk 0:00:35]}  e4 {[%clk 0:00:07]} 41. Ra7 {[%clk 0:00:29]}  e3 {[%clk 0:00:06]} 42. Ra8 {[%clk 0:00:19]}  Be5# {[%clk 0:00:05]} 0-1

[Event "January 9 Late 2024"]
[Site "https://www.chess.com"]
[Date "2024.01.09"]
[Round "7"]
[White "Keuchel, Destynn"]
[Black "Bueno, Alfeu Junior Varela"]
[Result "0-1"]
[Board "172"]
[TimeControl "180+1"]
[WhiteFideId "30923018"]
[BlackFideId "2108879"]
[WhiteElo "2076"]
[BlackElo "2376"]
[WhiteTeam "USA"]
[BlackTeam "BRA"]
[WhiteClock "0:00:27"]
[BlackClock "0:00:05"]

1. e4 {[%clk 0:03:00]}  e6 {[%clk 0:02:01]} 2. d4 {[%clk 0:02:58]}  d5 {[%clk 0:02:01]} 3. Bd3 {[%clk 0:02:58]}  dxe4 {[%clk 0:02:00]} 4. Bxe4 {[%clk 0:02:59]}  c5 {[%clk 0:01:59]} 5. c3 {[%clk 0:02:49]}  Nf6 {[%clk 0:01:59]} 6. Bf3 {[%clk 0:02:49]}  Nc6 {[%clk 0:01:59]} 7. Bxc6+ {[%clk 0:02:43]}  bxc6 {[%clk 0:01:59]} 8. Ne2 {[%clk 0:02:44]}  Ba6 {[%clk 0:01:52]} 9. O-O {[%clk 0:02:31]}  cxd4 {[%clk 0:01:45]} 10. cxd4 {[%clk 0:02:31]}  Bxe2 {[%clk 0:01:44]} 11. Qxe2 {[%clk 0:02:32]}  Qxd4 {[%clk 0:01:44]} 12. Be3 {[%clk 0:02:31]}  Qe5 {[%clk 0:01:44]} 13. Rc1 {[%clk 0:02:26]}  Bd6 {[%clk 0:01:39]} 14. g3 {[%clk 0:02:21]}  Qb5 {[%clk 0:01:28]} 15. Nc3 {[%clk 0:02:17]}  Qxe2 {[%clk 0:01:27]} 16. Nxe2 {[%clk 0:02:16]}  Kd7 {[%clk 0:01:21]} 17. Rd1 {[%clk 0:02:15]}  Rhb8 {[%clk 0:01:14]} 18. Bf4 {[%clk 0:02:11]}  Nd5 {[%clk 0:01:12]} 19. Bxd6 {[%clk 0:02:07]}  Kxd6 {[%clk 0:01:13]} 20. b3 {[%clk 0:02:07]}  a5 {[%clk 0:01:10]} 21. Rac1 {[%clk 0:02:06]}  a4 {[%clk 0:01:10]} 22. Nd4 {[%clk 0:02:05]}  Rb6 {[%clk 0:01:06]} 23. b4 {[%clk 0:02:00]}  a3 {[%clk 0:01:00]} 24. Rc4 {[%clk 0:01:55]}  Raa6 {[%clk 0:00:41]} 25. Nc2 {[%clk 0:01:37]}  Ra4 {[%clk 0:00:33]} 26. Rdd4 {[%clk 0:01:30]}  e5 {[%clk 0:00:26]} 27. Rh4 {[%clk 0:01:26]}  h6 {[%clk 0:00:25]} 28. Kg2 {[%clk 0:01:22]}  f5 {[%clk 0:00:21]} 29. g4 {[%clk 0:01:02]}  f4 {[%clk 0:00:12]} 30. g5 {[%clk 0:01:02]}  hxg5 {[%clk 0:00:12]} 31. Rh5 {[%clk 0:00:59]}  g4 {[%clk 0:00:10]} 32. Rg5 {[%clk 0:00:58]}  f3+ {[%clk 0:00:11]} 33. Kg3 {[%clk 0:00:57]}  Nf6 {[%clk 0:00:10]} 34. Rxg7 {[%clk 0:00:53]}  Kd5 {[%clk 0:00:10]} 35. Ne3+ {[%clk 0:00:51]}  Ke6 {[%clk 0:00:10]} 36. Rc7 {[%clk 0:00:46]}  Kd6 {[%clk 0:00:06]} 37. Nf5+ {[%clk 0:00:37]}  Kxc7 {[%clk 0:00:05]} 38. Ne7 {[%clk 0:00:27]}  Raxb4 {[%clk 0:00:05]} 0-1

[Event "January 9 Late 2024"]
[Site "https://www.chess.com"]
[Date "2024.01.09"]
[Round "7"]
[White "Pein, Jonathan"]
[Black "Fareh, Youness"]
[Result "1-0"]
[Board "173"]
[TimeControl "180+1"]
[WhiteFideId "417092"]
[BlackFideId "9000526"]
[WhiteElo "2322"]
[BlackElo "2033"]
[WhiteTeam "ENG"]
[BlackTeam "MAR"]
[WhiteClock "0:00:56"]
[BlackClock "0:00:28"]

1. e4 {[%clk 0:02:59]}  c5 {[%clk 0:02:57]} 2. Nf3 {[%clk 0:02:59]}  e6 {[%clk 0:02:57]} 3. b3 {[%clk 0:02:55]}  Nc6 {[%clk 0:02:54]} 4. Bb2 {[%clk 0:02:55]}  Nf6 {[%clk 0:02:53]} 5. e5 {[%clk 0:02:54]}  Nd5 {[%clk 0:02:50]} 6. c4 {[%clk 0:02:53]}  Nb6 {[%clk 0:02:39]} 7. Nc3 {[%clk 0:02:47]}  a6 {[%clk 0:02:36]} 8. g3 {[%clk 0:02:46]}  Be7 {[%clk 0:02:35]} 9. Bg2 {[%clk 0:02:44]}  O-O {[%clk 0:02:34]} 10. O-O {[%clk 0:02:43]}  d5 {[%clk 0:02:33]} 11. exd6 {[%clk 0:02:43]}  Bxd6 {[%clk 0:02:31]} 12. d4 {[%clk 0:02:35]}  Nxd4 {[%clk 0:02:31]} 13. Nxd4 {[%clk 0:02:36]}  cxd4 {[%clk 0:02:31]} 14. Qxd4 {[%clk 0:02:36]}  Be7 {[%clk 0:02:19]} 15. Nd5 {[%clk 0:02:27]}  Bf6 {[%clk 0:02:08]} 16. Nxf6+ {[%clk 0:01:57]}  Qxf6 {[%clk 0:02:02]} 17. Qxf6 {[%clk 0:01:56]}  gxf6 {[%clk 0:02:02]} 18. Bxf6 {[%clk 0:01:57]}  Nd7 {[%clk 0:01:57]} 19. Bb2 {[%clk 0:01:51]}  f6 {[%clk 0:01:55]} 20. Rad1 {[%clk 0:01:49]}  Kf7 {[%clk 0:01:53]} 21. Bxb7 {[%clk 0:01:48]}  Ra7 {[%clk 0:01:45]} 22. Bxc8 {[%clk 0:01:37]}  Rxc8 {[%clk 0:01:45]} 23. Rd6 {[%clk 0:01:35]}  a5 {[%clk 0:01:33]} 24. Rfd1 {[%clk 0:01:34]}  Nf8 {[%clk 0:01:33]} 25. Rd8 {[%clk 0:01:19]}  Rcc7 {[%clk 0:01:25]} 26. Bxf6 {[%clk 0:01:12]}  a4 {[%clk 0:01:13]} 27. Be5 {[%clk 0:01:09]}  Rcb7 {[%clk 0:01:02]} 28. Bd4 {[%clk 0:01:08]}  Ra6 {[%clk 0:00:58]} 29. Bc5 {[%clk 0:01:07]}  Ng6 {[%clk 0:00:48]} 30. R8d7+ {[%clk 0:01:06]}  Rxd7 {[%clk 0:00:46]} 31. Rxd7+ {[%clk 0:01:07]}  Kf6 {[%clk 0:00:46]} 32. b4 {[%clk 0:00:57]}  h5 {[%clk 0:00:42]} 33. h4 {[%clk 0:00:56]}  Ne5 {[%clk 0:00:28]} 34. Bd4 {[%clk 0:00:56]} 1-0

[Event "January 9 Late 2024"]
[Site "https://www.chess.com"]
[Date "2024.01.09"]
[Round "7"]
[White "Sailer, Mike"]
[Black "Smirnov, Timofey"]
[Result "1-0"]
[Board "177"]
[TimeControl "180+1"]
[WhiteFideId "2012901"]
[BlackFideId "24176427"]
[WhiteElo "2205"]
[BlackElo "1995"]
[WhiteTeam "USA"]
[BlackTeam "RUS"]
[WhiteClock "0:00:06"]
[BlackClock "0:00:00"]

1. d4 {[%clk 0:03:00]}  d5 {[%clk 0:02:59]} 2. Bf4 {[%clk 0:03:00]}  Bf5 {[%clk 0:02:59]} 3. e3 {[%clk 0:03:01]}  e6 {[%clk 0:02:59]} 4. Nc3 {[%clk 0:03:02]}  Nf6 {[%clk 0:02:58]} 5. f3 {[%clk 0:02:58]}  h6 {[%clk 0:02:56]} 6. g4 {[%clk 0:02:58]}  Bh7 {[%clk 0:02:56]} 7. Bd3 {[%clk 0:02:57]}  Bxd3 {[%clk 0:02:55]} 8. Qxd3 {[%clk 0:02:58]}  Bd6 {[%clk 0:02:54]} 9. Nge2 {[%clk 0:02:58]}  Nc6 {[%clk 0:02:43]} 10. a3 {[%clk 0:02:53]}  Qd7 {[%clk 0:02:41]} 11. O-O-O {[%clk 0:02:45]}  O-O-O {[%clk 0:02:41]} 12. h4 {[%clk 0:02:46]}  a6 {[%clk 0:02:32]} 13. Bxd6 {[%clk 0:02:28]}  Qxd6 {[%clk 0:02:31]} 14. g5 {[%clk 0:02:24]}  hxg5 {[%clk 0:02:31]} 15. hxg5 {[%clk 0:02:23]}  Nh5 {[%clk 0:02:24]} 16. g6 {[%clk 0:02:20]}  f5 {[%clk 0:02:17]} 17. Kb1 {[%clk 0:01:54]}  f4 {[%clk 0:01:40]} 18. e4 {[%clk 0:01:49]}  dxe4 {[%clk 0:01:21]} 19. fxe4 {[%clk 0:01:37]}  e5 {[%clk 0:01:09]} 20. d5 {[%clk 0:01:26]}  Ne7 {[%clk 0:01:03]} 21. Qh3+ {[%clk 0:01:13]}  Kb8 {[%clk 0:01:00]} 22. Rdg1 {[%clk 0:01:13]}  Nxg6 {[%clk 0:00:53]} 23. Qf5 {[%clk 0:00:53]}  Ne7 {[%clk 0:00:43]} 24. Qg5 {[%clk 0:00:45]}  g6 {[%clk 0:00:41]} 25. Na2 {[%clk 0:00:31]}  Qf6 {[%clk 0:00:40]} 26. Qg4 {[%clk 0:00:31]}  Rdf8 {[%clk 0:00:34]} 27. Rf1 {[%clk 0:00:10]}  Ng7 {[%clk 0:00:17]} 28. Nb4 {[%clk 0:00:10]}  Rh5 {[%clk 0:00:14]} 29. Qd7 {[%clk 0:00:08]}  Qd6 {[%clk 0:00:10]} 30. Qa4 {[%clk 0:00:08]}  Rfh8 {[%clk 0:00:10]} 31. Rxh5 {[%clk 0:00:08]}  Rxh5 {[%clk 0:00:09]} 32. c4 {[%clk 0:00:08]}  Nc8 {[%clk 0:00:04]} 33. Nd3 {[%clk 0:00:08]}  Nb6 {[%clk 0:00:04]} 34. Qb3 {[%clk 0:00:06]}  Ne8 {[%clk 0:00:03]} 35. c5 {[%clk 0:00:06]}  Qd8 {[%clk 0:00:01]} 36. cxb6 {[%clk 0:00:07]}  cxb6 {[%clk 0:00:02]} 37. Rc1 {[%clk 0:00:05]}  Qe7 {[%clk 0:00:01]} 38. Qc3 {[%clk 0:00:05]}  Qd6 {[%clk 0:00:01]} 39. Qxe5 {[%clk 0:00:05]}  Qxe5 {[%clk 0:00:00]} 40. Nxe5 {[%clk 0:00:06]} 1-0

[Event "January 9 Late 2024"]
[Site "https://www.chess.com"]
[Date "2024.01.09"]
[Round "7"]
[White "Burke, Paul"]
[Black "Vila Dupla, Aurelio"]
[Result "1-0"]
[Board "178"]
[TimeControl "180+1"]
[WhiteFideId "2605767"]
[BlackFideId "2203383"]
[WhiteElo "1881"]
[BlackElo "2168"]
[WhiteTeam "CAN"]
[BlackTeam "ESP"]
[WhiteClock "0:00:21"]
[BlackClock "0:00:00"]

1. e4 {[%clk 0:03:00]}  c5 {[%clk 0:02:59]} 2. Nf3 {[%clk 0:03:00]}  d6 {[%clk 0:02:58]} 3. d4 {[%clk 0:03:00]}  cxd4 {[%clk 0:02:58]} 4. c3 {[%clk 0:03:00]}  dxc3 {[%clk 0:02:57]} 5. Nxc3 {[%clk 0:02:59]}  Nc6 {[%clk 0:02:58]} 6. Bc4 {[%clk 0:02:56]}  e6 {[%clk 0:02:58]} 7. O-O {[%clk 0:02:55]}  a6 {[%clk 0:02:58]} 8. a3 {[%clk 0:02:55]}  Be7 {[%clk 0:02:58]} 9. Qe2 {[%clk 0:02:55]}  Bd7 {[%clk 0:02:57]} 10. Rd1 {[%clk 0:02:54]}  Nf6 {[%clk 0:02:56]} 11. Bg5 {[%clk 0:02:54]}  O-O {[%clk 0:02:07]} 12. Bxf6 {[%clk 0:02:52]}  gxf6 {[%clk 0:02:07]} 13. Rac1 {[%clk 0:02:49]}  Kh8 {[%clk 0:02:02]} 14. Ba2 {[%clk 0:02:49]}  Ne5 {[%clk 0:01:59]} 15. Nd4 {[%clk 0:02:47]}  Rg8 {[%clk 0:01:53]} 16. f4 {[%clk 0:02:46]}  Nc6 {[%clk 0:01:47]} 17. Nf3 {[%clk 0:02:40]}  Qb6+ {[%clk 0:01:25]} 18. Kh1 {[%clk 0:02:38]}  Rg7 {[%clk 0:01:24]} 19. e5 {[%clk 0:02:08]}  fxe5 {[%clk 0:01:15]} 20. fxe5 {[%clk 0:02:05]}  d5 {[%clk 0:01:15]} 21. Bxd5 {[%clk 0:02:00]}  Rag8 {[%clk 0:01:06]} 22. Ne1 {[%clk 0:01:26]}  exd5 {[%clk 0:00:52]} 23. Nxd5 {[%clk 0:01:25]}  Qd8 {[%clk 0:00:46]} 24. Nf6 {[%clk 0:01:18]}  Bxf6 {[%clk 0:00:38]} 25. exf6 {[%clk 0:01:17]}  Rg6 {[%clk 0:00:33]} 26. Nf3 {[%clk 0:00:47]}  Qxf6 {[%clk 0:00:07]} 27. Rxd7 {[%clk 0:00:44]}  Rxg2 {[%clk 0:00:07]} 28. Qe3 {[%clk 0:00:36]}  Rxb2 {[%clk 0:00:04]} 29. Rg1 {[%clk 0:00:22]}  Rxg1+ {[%clk 0:00:00]} 30. Nxg1 {[%clk 0:00:21]} 1-0

[Event "January 9 Late 2024"]
[Site "https://www.chess.com"]
[Date "2024.01.09"]
[Round "7"]
[White "Gulamirian, Korun"]
[Black "Reinecke, Katharina"]
[Result "0-1"]
[Board "179"]
[TimeControl "180+1"]
[WhiteFideId "4144899"]
[BlackFideId "12929727"]
[WhiteElo "1636"]
[BlackElo "2027"]
[WhiteTeam "RUS"]
[BlackTeam "GER"]
[WhiteClock "0:00:00"]
[BlackClock "0:00:36"]

1. e4 {[%clk 0:02:58]}  c6 {[%clk 0:02:58]} 2. Nc3 {[%clk 0:02:56]}  d5 {[%clk 0:02:56]} 3. Nf3 {[%clk 0:02:56]}  Bg4 {[%clk 0:02:54]} 4. h3 {[%clk 0:02:56]}  Bxf3 {[%clk 0:02:54]} 5. Qxf3 {[%clk 0:02:55]}  e6 {[%clk 0:02:54]} 6. exd5 {[%clk 0:02:54]}  cxd5 {[%clk 0:02:51]} 7. d4 {[%clk 0:02:45]}  Nf6 {[%clk 0:02:47]} 8. Bd3 {[%clk 0:02:44]}  Nc6 {[%clk 0:02:45]} 9. Ne2 {[%clk 0:02:42]}  Be7 {[%clk 0:02:40]} 10. c3 {[%clk 0:02:42]}  O-O {[%clk 0:02:32]} 11. O-O {[%clk 0:02:41]}  a6 {[%clk 0:02:31]} 12. Nf4 {[%clk 0:02:40]}  b5 {[%clk 0:02:29]} 13. a3 {[%clk 0:02:39]}  Na5 {[%clk 0:02:28]} 14. Qd1 {[%clk 0:02:32]}  Nc4 {[%clk 0:02:27]} 15. b3 {[%clk 0:02:31]}  Nd6 {[%clk 0:02:23]} 16. Bc2 {[%clk 0:02:28]}  Rc8 {[%clk 0:02:21]} 17. Qd3 {[%clk 0:02:23]}  Nde4 {[%clk 0:02:19]} 18. Bb2 {[%clk 0:02:14]}  Qc7 {[%clk 0:02:08]} 19. Ne2 {[%clk 0:02:09]}  g6 {[%clk 0:02:02]} 20. f3 {[%clk 0:02:07]}  Nd6 {[%clk 0:02:01]} 21. g4 {[%clk 0:01:50]}  a5 {[%clk 0:01:34]} 22. Kg2 {[%clk 0:01:45]}  Qb6 {[%clk 0:01:33]} 23. h4 {[%clk 0:01:36]}  b4 {[%clk 0:01:28]} 24. axb4 {[%clk 0:01:35]}  axb4 {[%clk 0:01:28]} 25. Ra6 {[%clk 0:01:29]}  Qb7 {[%clk 0:01:25]} 26. Rfa1 {[%clk 0:01:27]}  Ra8 {[%clk 0:01:23]} 27. Rxa8 {[%clk 0:01:11]}  Rxa8 {[%clk 0:01:22]} 28. Rxa8+ {[%clk 0:01:08]}  Qxa8 {[%clk 0:01:23]} 29. cxb4 {[%clk 0:01:06]}  Qa2 {[%clk 0:01:21]} 30. Qc3 {[%clk 0:01:01]}  Nb5 {[%clk 0:01:19]} 31. Qc8+ {[%clk 0:01:00]}  Bf8 {[%clk 0:01:19]} 32. Bd3 {[%clk 0:00:46]}  Qxb2 {[%clk 0:01:13]} 33. Bxb5 {[%clk 0:00:45]}  Qxb3 {[%clk 0:01:12]} 34. g5 {[%clk 0:00:31]}  Nh5 {[%clk 0:01:08]} 35. Qc3 {[%clk 0:00:19]}  Nf4+ {[%clk 0:00:58]} 36. Kf2 {[%clk 0:00:16]}  Qxc3 {[%clk 0:00:50]} 37. Nxc3 {[%clk 0:00:16]}  Bxb4 {[%clk 0:00:49]} 38. Na4 {[%clk 0:00:11]}  Kg7 {[%clk 0:00:42]} 39. Ke3 {[%clk 0:00:09]}  Ng2+ {[%clk 0:00:40]} 40. Kd3 {[%clk 0:00:05]}  Nxh4 {[%clk 0:00:39]} 41. Nc5 {[%clk 0:00:00]}  Nxf3 {[%clk 0:00:36]} 0-1

[Event "January 9 Late 2024"]
[Site "https://www.chess.com"]
[Date "2024.01.09"]
[Round "8"]
[White "Xiong, Jeffery"]
[Black "Firouzja, Alireza"]
[Result "1-0"]
[Board "3"]
[TimeControl "180+1"]
[WhiteFideId "2047640"]
[BlackFideId "12573981"]
[WhiteElo "3026"]
[BlackElo "3168"]
[WhiteTeam "USA"]
[BlackTeam "FRA"]
[WhiteClock "0:00:49"]
[BlackClock "0:00:00"]

1. e4 {[%clk 0:03:00]}  Nc6 {[%clk 0:02:58]} 2. Nf3 {[%clk 0:03:00]}  d6 {[%clk 0:02:58]} 3. d4 {[%clk 0:03:00]}  Nf6 {[%clk 0:02:59]} 4. Nc3 {[%clk 0:03:01]}  g6 {[%clk 0:02:56]} 5. Be3 {[%clk 0:03:01]}  Bg7 {[%clk 0:02:56]} 6. Qd2 {[%clk 0:03:01]}  Ng4 {[%clk 0:02:55]} 7. Bg5 {[%clk 0:03:00]}  h6 {[%clk 0:02:55]} 8. Bh4 {[%clk 0:03:01]}  g5 {[%clk 0:02:53]} 9. Bg3 {[%clk 0:03:01]}  e5 {[%clk 0:02:53]} 10. d5 {[%clk 0:02:59]}  Ne7 {[%clk 0:02:51]} 11. h4 {[%clk 0:02:59]}  f6 {[%clk 0:02:20]} 12. Ng1 {[%clk 0:02:59]}  f5 {[%clk 0:02:13]} 13. f3 {[%clk 0:02:54]}  f4 {[%clk 0:01:53]} 14. fxg4 {[%clk 0:02:54]}  fxg3 {[%clk 0:01:54]} 15. hxg5 {[%clk 0:02:55]}  Ng8 {[%clk 0:01:54]} 16. Bb5+ {[%clk 0:02:55]}  Kf7 {[%clk 0:01:25]} 17. Nge2 {[%clk 0:02:23]}  Qxg5 {[%clk 0:01:19]} 18. Qxg5 {[%clk 0:02:23]}  hxg5 {[%clk 0:01:19]} 19. Rxh8 {[%clk 0:02:23]}  Bxh8 {[%clk 0:01:20]} 20. Nxg3 {[%clk 0:02:24]}  Bxg4 {[%clk 0:01:19]} 21. Nd1 {[%clk 0:02:11]}  a6 {[%clk 0:01:04]} 22. Ne3 {[%clk 0:02:07]}  axb5 {[%clk 0:01:04]} 23. Nxg4 {[%clk 0:02:07]}  Nf6 {[%clk 0:01:04]} 24. Nxf6 {[%clk 0:01:51]}  Bxf6 {[%clk 0:01:05]} 25. Ke2 {[%clk 0:01:51]}  g4 {[%clk 0:01:03]} 26. a3 {[%clk 0:01:50]}  Kg6 {[%clk 0:01:02]} 27. Rh1 {[%clk 0:01:43]}  Bg5 {[%clk 0:00:54]} 28. Nf5 {[%clk 0:01:43]}  Ra4 {[%clk 0:00:52]} 29. Kd3 {[%clk 0:01:42]}  c6 {[%clk 0:00:49]} 30. c3 {[%clk 0:01:11]}  cxd5 {[%clk 0:00:45]} 31. Nxd6 {[%clk 0:01:11]}  Be7 {[%clk 0:00:31]} 32. Nxb5 {[%clk 0:01:11]}  dxe4+ {[%clk 0:00:27]} 33. Ke2 {[%clk 0:01:12]}  Ra8 {[%clk 0:00:21]} 34. Ke3 {[%clk 0:01:08]}  Rf8 {[%clk 0:00:15]} 35. b4 {[%clk 0:01:06]}  Rf4 {[%clk 0:00:12]} 36. g3 {[%clk 0:01:01]}  Rf3+ {[%clk 0:00:11]} 37. Kxe4 {[%clk 0:01:02]}  Rxg3 {[%clk 0:00:12]} 38. Kxe5 {[%clk 0:01:02]}  Rf3 {[%clk 0:00:09]} 39. c4 {[%clk 0:00:55]}  g3 {[%clk 0:00:07]} 40. c5 {[%clk 0:00:56]}  g2 {[%clk 0:00:04]} 41. Rg1 {[%clk 0:00:56]}  Rg3 {[%clk 0:00:04]} 42. Nd6 {[%clk 0:00:55]}  Bf6+ {[%clk 0:00:03]} 43. Kd5 {[%clk 0:00:53]}  Rg5+ {[%clk 0:00:03]} 44. Kc4 {[%clk 0:00:54]}  Rg4+ {[%clk 0:00:04]} 45. Kd3 {[%clk 0:00:48]}  Bd4 {[%clk 0:00:04]} 46. Rxg2 {[%clk 0:00:48]}  Rxg2 {[%clk 0:00:05]} 47. Kxd4 {[%clk 0:00:48]}  Kf6 {[%clk 0:00:03]} 48. Nxb7 {[%clk 0:00:48]}  Ke6 {[%clk 0:00:02]} 49. c6 {[%clk 0:00:49]}  Rc2 {[%clk 0:00:02]} 50. b5 {[%clk 0:00:49]}  Rc1 {[%clk 0:00:00]} 51. a4 {[%clk 0:00:49]} 1-0